[Event "Titled Tuesday Blitz November 22 Late 2022"]
[White "Garcia Pantoja, Roberto"]
[Black "Ansh M Shah"]
[WhiteFideId "3509265"]
[BlackFideId "25033379"]
[WhiteElo "2524"]
[BlackElo "2084"]
[Result "1-0"]
[Round "01"]
[TimeControl "180+1"]
[Date "2022.11.23"]
[WhiteClock "0:01:59"]
[BlackClock "0:01:33"]

1. Nf3 {[%clk 0:03:00]}  Nf6 {[%clk 0:02:58]} 2. e3 {[%clk 0:03:01]}  e6 {[%clk 0:02:59]} 3. c4 {[%clk 0:03:02]}  d5 {[%clk 0:03:00]} 4. b3 {[%clk 0:03:02]}  Be7 {[%clk 0:03:00]} 5. Bb2 {[%clk 0:03:02]}  O-O {[%clk 0:03:01]} 6. Nc3 {[%clk 0:03:02]}  b6 {[%clk 0:03:02]} 7. cxd5 {[%clk 0:03:01]}  exd5 {[%clk 0:03:01]} 8. d4 {[%clk 0:03:00]}  Bb7 {[%clk 0:03:02]} 9. Be2 {[%clk 0:03:00]}  Nbd7 {[%clk 0:03:03]} 10. O-O {[%clk 0:03:01]}  c5 {[%clk 0:03:03]} 11. Rc1 {[%clk 0:03:01]}  Rc8 {[%clk 0:03:02]} 12. dxc5 {[%clk 0:03:00]}  Nxc5 {[%clk 0:03:03]} 13. Nb5 {[%clk 0:02:58]}  a6 {[%clk 0:03:03]} 14. Nbd4 {[%clk 0:02:58]}  Nfe4 {[%clk 0:03:03]} 15. b4 {[%clk 0:02:50]}  Ne6 {[%clk 0:03:02]} 16. Ne5 {[%clk 0:02:43]}  Bf6 {[%clk 0:02:56]} 17. Rxc8 {[%clk 0:02:30]}  Qxc8 {[%clk 0:02:55]} 18. Nef3 {[%clk 0:02:18]}  Nc3 {[%clk 0:02:50]} 19. Qd2 {[%clk 0:02:16]}  Nxe2+ {[%clk 0:02:40]} 20. Nxe2 {[%clk 0:02:15]}  Bxb2 {[%clk 0:02:33]} 21. Qxb2 {[%clk 0:02:15]}  Qd7 {[%clk 0:02:31]} 22. Ned4 {[%clk 0:02:13]}  Rc8 {[%clk 0:02:30]} 23. Rc1 {[%clk 0:02:12]}  Rxc1+ {[%clk 0:02:16]} 24. Qxc1 {[%clk 0:02:12]}  Qc8 {[%clk 0:02:17]} 25. Qb2 {[%clk 0:02:09]}  Qc4 {[%clk 0:02:15]} 26. h3 {[%clk 0:02:07]}  Bc8 {[%clk 0:02:01]} 27. a3 {[%clk 0:02:05]}  g6 {[%clk 0:01:59]} 28. Ne5 {[%clk 0:02:02]}  Qc7 {[%clk 0:01:56]} 29. Ng4 {[%clk 0:02:00]}  Nxd4 {[%clk 0:01:34]} 30. Nf6+ {[%clk 0:02:00]}  Kg7 {[%clk 0:01:33]} 31. Ne8+ {[%clk 0:01:59]} 1-0


[Site "https://www.chess.com"]

[Event "Titled Tuesday Blitz November 22 Late 2022"]
[White "Garcia Ramos, Daniel"]
[Black "De Souza, Cristiano Gomes"]
[WhiteFideId "32010311"]
[BlackFideId "2151758"]
[WhiteElo "2357"]
[BlackElo "2068"]
[Result "1-0"]
[Round "01"]
[TimeControl "180+1"]
[Date "2022.11.23"]
[WhiteClock "0:00:06"]
[BlackClock "0:00:31"]

1. e4 {[%clk 0:02:59]}  c5 {[%clk 0:02:59]} 2. Nf3 {[%clk 0:02:58]}  d6 {[%clk 0:02:59]} 3. d4 {[%clk 0:02:57]}  cxd4 {[%clk 0:02:59]} 4. Nxd4 {[%clk 0:02:58]}  Nf6 {[%clk 0:03:00]} 5. f3 {[%clk 0:02:57]}  g6 {[%clk 0:02:59]} 6. c4 {[%clk 0:02:56]}  Bg7 {[%clk 0:02:59]} 7. Nc3 {[%clk 0:02:56]}  O-O {[%clk 0:02:59]} 8. Be3 {[%clk 0:02:57]}  Bd7 {[%clk 0:02:59]} 9. Qd2 {[%clk 0:02:57]}  Nc6 {[%clk 0:02:59]} 10. Be2 {[%clk 0:02:57]}  a5 {[%clk 0:03:00]} 11. O-O {[%clk 0:02:57]}  Nxd4 {[%clk 0:03:00]} 12. Bxd4 {[%clk 0:02:57]}  Bc6 {[%clk 0:02:59]} 13. Rfd1 {[%clk 0:02:57]}  Nd7 {[%clk 0:02:59]} 14. Be3 {[%clk 0:02:56]}  a4 {[%clk 0:02:56]} 15. Rab1 {[%clk 0:02:54]}  Re8 {[%clk 0:02:56]} 16. b4 {[%clk 0:02:47]}  axb3 {[%clk 0:02:56]} 17. axb3 {[%clk 0:02:48]}  Ra3 {[%clk 0:02:54]} 18. Nb5 {[%clk 0:02:11]}  Bxb5 {[%clk 0:02:50]} 19. cxb5 {[%clk 0:02:12]}  Nc5 {[%clk 0:02:38]} 20. Bc4 {[%clk 0:02:10]}  Qa8 {[%clk 0:02:30]} 21. h4 {[%clk 0:01:34]}  Ra2 {[%clk 0:02:26]} 22. Qd5 {[%clk 0:01:33]}  Ne6 {[%clk 0:02:16]} 23. h5 {[%clk 0:01:14]}  Qc8 {[%clk 0:02:03]} 24. Rdc1 {[%clk 0:00:54]}  Qd7 {[%clk 0:02:00]} 25. b6 {[%clk 0:00:51]}  Rc8 {[%clk 0:01:52]} 26. Bb5 {[%clk 0:00:47]}  Rxc1+ {[%clk 0:01:50]} 27. Rxc1 {[%clk 0:00:48]}  Qd8 {[%clk 0:01:40]} 28. Qxb7 {[%clk 0:00:47]}  Ra8 {[%clk 0:01:29]} 29. hxg6 {[%clk 0:00:27]}  hxg6 {[%clk 0:01:26]} 30. Bd7 {[%clk 0:00:20]}  Nd4 {[%clk 0:01:23]} 31. Qxa8 {[%clk 0:00:15]}  Qxa8 {[%clk 0:01:07]} 32. Rc8+ {[%clk 0:00:16]}  Qxc8 {[%clk 0:01:06]} 33. Bxc8 {[%clk 0:00:17]}  Nc6 {[%clk 0:01:04]} 34. Bd7 {[%clk 0:00:15]}  Nb8 {[%clk 0:01:03]} 35. Bb5 {[%clk 0:00:15]}  Bc3 {[%clk 0:00:54]} 36. Kf2 {[%clk 0:00:12]}  Kf8 {[%clk 0:00:50]} 37. Ke2 {[%clk 0:00:12]}  Ba5 {[%clk 0:00:50]} 38. Kd3 {[%clk 0:00:12]}  e6 {[%clk 0:00:50]} 39. Kc4 {[%clk 0:00:11]}  Be1 {[%clk 0:00:48]} 40. b7 {[%clk 0:00:10]}  Bg3 {[%clk 0:00:44]} 41. Ba7 {[%clk 0:00:02]}  d5+ {[%clk 0:00:37]} 42. exd5 {[%clk 0:00:03]}  exd5+ {[%clk 0:00:36]} 43. Kxd5 {[%clk 0:00:04]}  Ke7 {[%clk 0:00:36]} 44. Bc5+ {[%clk 0:00:05]}  Kf6 {[%clk 0:00:35]} 45. Bd6 {[%clk 0:00:05]}  Bxd6 {[%clk 0:00:33]} 46. Kxd6 {[%clk 0:00:06]}  Kg5 {[%clk 0:00:31]} 47. Kc7 {[%clk 0:00:06]} 1-0


[Site "https://www.chess.com"]

[Event "Titled Tuesday Blitz November 22 Late 2022"]
[White "Gascon Del Nogal, Jose Rafael"]
[Black "Torres Boch, Jose Francisco"]
[WhiteFideId "3902463"]
[BlackFideId "2278383"]
[WhiteElo "2473"]
[BlackElo "2073"]
[Result "1-0"]
[Round "01"]
[TimeControl "180+1"]
[Date "2022.11.23"]
[WhiteClock "0:01:48"]
[BlackClock "0:00:25"]

1. Nf3 {[%clk 0:03:00]}  Nf6 {[%clk 0:02:43]} 2. c4 {[%clk 0:02:58]}  c5 {[%clk 0:02:41]} 3. d4 {[%clk 0:02:52]}  cxd4 {[%clk 0:02:40]} 4. Nxd4 {[%clk 0:02:53]}  g6 {[%clk 0:02:39]} 5. Nc3 {[%clk 0:02:52]}  Bg7 {[%clk 0:02:40]} 6. e4 {[%clk 0:02:52]}  O-O {[%clk 0:02:40]} 7. Be2 {[%clk 0:02:46]}  Nc6 {[%clk 0:02:36]} 8. Be3 {[%clk 0:02:45]}  Qa5 {[%clk 0:02:32]} 9. O-O {[%clk 0:02:44]}  e6 {[%clk 0:02:19]} 10. Ndb5 {[%clk 0:02:38]}  d5 {[%clk 0:02:10]} 11. exd5 {[%clk 0:02:32]}  exd5 {[%clk 0:02:10]} 12. cxd5 {[%clk 0:02:32]}  Nb4 {[%clk 0:02:08]} 13. a3 {[%clk 0:02:28]}  Na6 {[%clk 0:02:06]} 14. Nd6 {[%clk 0:01:51]}  Bd7 {[%clk 0:00:28]} 15. Nxb7 {[%clk 0:01:48]}  Qc7 {[%clk 0:00:25]} 16. Bxa6 {[%clk 0:01:48]} 1-0


[Site "https://www.chess.com"]

[Event "Titled Tuesday Blitz November 22 Late 2022"]
[White "Gorodetzky, David"]
[Black "Aguilar, Juan"]
[WhiteFideId "2813416"]
[BlackFideId "3800091"]
[WhiteElo "2497"]
[BlackElo "2470"]
[Result "0-1"]
[Round "01"]
[TimeControl "180+1"]
[Date "2022.11.23"]
[WhiteClock "0:00:06"]
[BlackClock "0:00:14"]

1. e4 {[%clk 0:02:59]}  c5 {[%clk 0:02:59]} 2. Nf3 {[%clk 0:02:56]}  d6 {[%clk 0:02:59]} 3. Bb5+ {[%clk 0:02:46]}  Bd7 {[%clk 0:02:59]} 4. Bxd7+ {[%clk 0:02:41]}  Qxd7 {[%clk 0:03:00]} 5. O-O {[%clk 0:02:40]}  Nc6 {[%clk 0:03:00]} 6. c3 {[%clk 0:02:37]}  Nf6 {[%clk 0:02:59]} 7. Re1 {[%clk 0:02:35]}  e6 {[%clk 0:02:59]} 8. d4 {[%clk 0:02:30]}  cxd4 {[%clk 0:03:00]} 9. cxd4 {[%clk 0:02:31]}  d5 {[%clk 0:03:01]} 10. e5 {[%clk 0:02:31]}  Ne4 {[%clk 0:03:01]} 11. Nbd2 {[%clk 0:02:32]}  Nxd2 {[%clk 0:03:01]} 12. Bxd2 {[%clk 0:02:33]}  Bb4 {[%clk 0:03:01]} 13. Re3 {[%clk 0:02:31]}  O-O {[%clk 0:02:53]} 14. Bxb4 {[%clk 0:02:28]}  Nxb4 {[%clk 0:02:54]} 15. a3 {[%clk 0:02:12]}  Nc6 {[%clk 0:02:51]} 16. h4 {[%clk 0:02:12]}  Rfc8 {[%clk 0:02:46]} 17. h5 {[%clk 0:02:10]}  h6 {[%clk 0:02:43]} 18. Nh2 {[%clk 0:01:45]}  Ne7 {[%clk 0:02:42]} 19. Ng4 {[%clk 0:01:40]}  Nf5 {[%clk 0:02:34]} 20. Rd3 {[%clk 0:01:38]}  Qd8 {[%clk 0:02:32]} 21. b3 {[%clk 0:01:22]}  Rc6 {[%clk 0:02:20]} 22. Rc1 {[%clk 0:01:18]}  Rac8 {[%clk 0:02:20]} 23. Rxc6 {[%clk 0:01:19]}  Rxc6 {[%clk 0:02:21]} 24. Qd2 {[%clk 0:01:18]}  Qc7 {[%clk 0:01:55]} 25. g3 {[%clk 0:00:58]}  Rc1+ {[%clk 0:01:52]} 26. Kg2 {[%clk 0:00:57]}  Rc2 {[%clk 0:01:53]} 27. Qf4 {[%clk 0:00:55]}  Qa5 {[%clk 0:01:41]} 28. Ne3 {[%clk 0:00:40]}  Nxe3+ {[%clk 0:01:18]} 29. Rxe3 {[%clk 0:00:41]}  Qd2 {[%clk 0:01:14]} 30. g4 {[%clk 0:00:32]}  Rc1 {[%clk 0:01:00]} 31. g5 {[%clk 0:00:23]}  hxg5 {[%clk 0:00:47]} 32. Qxg5 {[%clk 0:00:19]}  Qd1 {[%clk 0:00:44]} 33. Qh4 {[%clk 0:00:15]}  Qg1+ {[%clk 0:00:38]} 34. Kf3 {[%clk 0:00:15]}  Rd1 {[%clk 0:00:30]} 35. h6 {[%clk 0:00:13]}  gxh6 {[%clk 0:00:24]} 36. Ke2 {[%clk 0:00:12]}  Qe1+ {[%clk 0:00:20]} 37. Kf3 {[%clk 0:00:11]}  Qg1 {[%clk 0:00:17]} 38. Ke2 {[%clk 0:00:06]}  Re1+ {[%clk 0:00:17]} 39. Kd3 {[%clk 0:00:05]}  Rxe3+ {[%clk 0:00:17]} 40. fxe3 {[%clk 0:00:06]}  Qb1+ {[%clk 0:00:15]} 41. Kc3 {[%clk 0:00:07]}  Qc1+ {[%clk 0:00:15]} 42. Kb4 {[%clk 0:00:07]}  Qxe3 {[%clk 0:00:14]} 43. Qd8+ {[%clk 0:00:06]}  Kh7 {[%clk 0:00:14]} 0-1


[Site "https://www.chess.com"]

[Event "Titled Tuesday Blitz November 22 Late 2022"]
[White "Grot, Blazej"]
[Black "Daggupati, Balaji"]
[WhiteFideId "21835845"]
[BlackFideId "2090759"]
[WhiteElo "1822"]
[BlackElo "2688"]
[Result "1/2-1/2"]
[Round "01"]
[TimeControl "180+1"]
[Date "2022.11.23"]
[WhiteClock "0:00:06"]
[BlackClock "0:00:06"]

1. e4 {[%clk 0:02:27]}  c5 {[%clk 0:02:59]} 2. Nc3 {[%clk 0:02:27]}  Nc6 {[%clk 0:02:58]} 3. Bb5 {[%clk 0:02:27]}  Nd4 {[%clk 0:02:59]} 4. Nf3 {[%clk 0:02:28]}  e6 {[%clk 0:02:59]} 5. Nxd4 {[%clk 0:02:27]}  cxd4 {[%clk 0:02:59]} 6. Ne2 {[%clk 0:02:28]}  g6 {[%clk 0:02:41]} 7. O-O {[%clk 0:02:28]}  Bg7 {[%clk 0:02:42]} 8. d3 {[%clk 0:02:28]}  Ne7 {[%clk 0:02:42]} 9. Bc4 {[%clk 0:02:23]}  O-O {[%clk 0:02:42]} 10. Bb3 {[%clk 0:02:23]}  d5 {[%clk 0:02:40]} 11. f4 {[%clk 0:02:19]}  dxe4 {[%clk 0:02:30]} 12. dxe4 {[%clk 0:02:20]}  b6 {[%clk 0:02:30]} 13. Bc4 {[%clk 0:02:12]}  Bb7 {[%clk 0:02:29]} 14. Bd3 {[%clk 0:02:12]}  Rc8 {[%clk 0:02:00]} 15. Qe1 {[%clk 0:02:08]}  f5 {[%clk 0:01:48]} 16. exf5 {[%clk 0:02:01]}  exf5 {[%clk 0:01:47]} 17. Qf2 {[%clk 0:01:53]}  Re8 {[%clk 0:01:41]} 18. Bd2 {[%clk 0:01:53]}  Nd5 {[%clk 0:01:38]} 19. Nxd4 {[%clk 0:01:41]}  Nxf4 {[%clk 0:01:37]} 20. Qxf4 {[%clk 0:01:21]}  Qxd4+ {[%clk 0:01:36]} 21. Kh1 {[%clk 0:01:21]}  Qxf4 {[%clk 0:01:36]} 22. Bxf4 {[%clk 0:01:16]}  Bxb2 {[%clk 0:01:36]} 23. Rae1 {[%clk 0:01:16]}  Bc3 {[%clk 0:01:33]} 24. Rxe8+ {[%clk 0:01:10]}  Rxe8 {[%clk 0:01:34]} 25. Kg1 {[%clk 0:01:11]}  Bd4+ {[%clk 0:01:33]} 26. Kh1 {[%clk 0:01:10]}  Kg7 {[%clk 0:01:32]} 27. h3 {[%clk 0:01:09]}  Bd5 {[%clk 0:01:27]} 28. a4 {[%clk 0:01:01]}  h6 {[%clk 0:01:27]} 29. Bb5 {[%clk 0:00:56]}  Re4 {[%clk 0:01:14]} 30. Bb8 {[%clk 0:00:49]}  a5 {[%clk 0:00:35]} 31. Rd1 {[%clk 0:00:49]}  Be5 {[%clk 0:00:36]} 32. Bxe5+ {[%clk 0:00:15]}  Rxe5 {[%clk 0:00:37]} 33. c4 {[%clk 0:00:15]}  Be4 {[%clk 0:00:16]} 34. Rd7+ {[%clk 0:00:16]}  Kf8 {[%clk 0:00:15]} 35. Rd6 {[%clk 0:00:16]}  f4 {[%clk 0:00:15]} 36. Rxb6 {[%clk 0:00:14]}  Rg5 {[%clk 0:00:15]} 37. Bc6 {[%clk 0:00:09]}  Bc2 {[%clk 0:00:04]} 38. Bd5 {[%clk 0:00:03]}  Rf5 {[%clk 0:00:02]} 39. Rxg6 {[%clk 0:00:02]}  Rxd5 {[%clk 0:00:02]} 40. Rf6+ {[%clk 0:00:01]}  Ke7 {[%clk 0:00:03]} 41. Rxf4 {[%clk 0:00:01]}  Rd1+ {[%clk 0:00:03]} 42. Kh2 {[%clk 0:00:02]}  Bxa4 {[%clk 0:00:04]} 43. Rh4 {[%clk 0:00:02]}  Rd6 {[%clk 0:00:03]} 44. c5 {[%clk 0:00:03]}  Rc6 {[%clk 0:00:02]} 45. Rxa4 {[%clk 0:00:03]}  Rxc5 {[%clk 0:00:02]} 46. Kg3 {[%clk 0:00:04]}  Kd6 {[%clk 0:00:03]} 47. Kf4 {[%clk 0:00:04]}  Kc6 {[%clk 0:00:03]} 48. g4 {[%clk 0:00:05]}  Kb5 {[%clk 0:00:04]} 49. Ra1 {[%clk 0:00:05]}  a4 {[%clk 0:00:04]} 50. h4 {[%clk 0:00:05]}  Rc4+ {[%clk 0:00:03]} 51. Kf5 {[%clk 0:00:05]}  Kb4 {[%clk 0:00:01]} 52. g5 {[%clk 0:00:05]}  hxg5 {[%clk 0:00:02]} 53. hxg5 {[%clk 0:00:05]}  Kb3 {[%clk 0:00:02]} 54. g6 {[%clk 0:00:05]}  Kb2 {[%clk 0:00:02]} 55. Rxa4 {[%clk 0:00:05]}  Rxa4 {[%clk 0:00:03]} 56. g7 {[%clk 0:00:05]}  Ra8 {[%clk 0:00:04]} 57. Kf6 {[%clk 0:00:05]}  Kc3 {[%clk 0:00:05]} 58. Kf7 {[%clk 0:00:06]}  Kd4 {[%clk 0:00:05]} 59. g8=Q {[%clk 0:00:06]}  Rxg8 {[%clk 0:00:06]} 60. Kxg8 {[%clk 0:00:06]} 1/2-1/2


[Site "https://www.chess.com"]

[Event "Titled Tuesday Blitz November 22 Late 2022"]
[White "Haydon, David L"]
[Black "Arnold, Ken"]
[WhiteFideId "415405"]
[BlackFideId "2056836"]
[WhiteElo "2317"]
[BlackElo "2347"]
[Result "0-1"]
[Round "01"]
[TimeControl "180+1"]
[Date "2022.11.23"]
[WhiteClock "0:01:23"]
[BlackClock "0:01:03"]

1. e4 {[%clk 0:02:59]}  c6 {[%clk 0:02:59]} 2. d4 {[%clk 0:02:58]}  d5 {[%clk 0:02:59]} 3. Nd2 {[%clk 0:02:58]}  dxe4 {[%clk 0:02:58]} 4. Nxe4 {[%clk 0:02:58]}  Nf6 {[%clk 0:02:59]} 5. Ng3 {[%clk 0:02:58]}  h5 {[%clk 0:02:58]} 6. h4 {[%clk 0:02:58]}  Qc7 {[%clk 0:02:58]} 7. N1e2 {[%clk 0:02:57]}  e6 {[%clk 0:02:54]} 8. Bf4 {[%clk 0:02:57]}  Bd6 {[%clk 0:02:54]} 9. Qd2 {[%clk 0:02:57]}  b6 {[%clk 0:02:48]} 10. Bxd6 {[%clk 0:02:57]}  Qxd6 {[%clk 0:02:48]} 11. Qg5 {[%clk 0:02:57]}  Nbd7 {[%clk 0:02:42]} 12. O-O-O {[%clk 0:02:55]}  g6 {[%clk 0:02:39]} 13. f3 {[%clk 0:02:54]}  Bb7 {[%clk 0:02:38]} 14. Ne4 {[%clk 0:02:52]}  Nxe4 {[%clk 0:02:36]} 15. fxe4 {[%clk 0:02:52]}  Qe7 {[%clk 0:02:36]} 16. Qe3 {[%clk 0:02:50]}  O-O-O {[%clk 0:02:35]} 17. Nc3 {[%clk 0:02:48]}  c5 {[%clk 0:02:31]} 18. Bb5 {[%clk 0:02:37]}  cxd4 {[%clk 0:02:29]} 19. Rxd4 {[%clk 0:02:33]}  Nc5 {[%clk 0:02:28]} 20. b4 {[%clk 0:02:29]}  Na6 {[%clk 0:02:21]} 21. Rhd1 {[%clk 0:02:20]}  Rxd4 {[%clk 0:02:19]} 22. Qxd4 {[%clk 0:02:17]}  Rd8 {[%clk 0:02:18]} 23. Qc4+ {[%clk 0:02:16]}  Nc7 {[%clk 0:02:16]} 24. Rxd8+ {[%clk 0:02:14]}  Qxd8 {[%clk 0:02:12]} 25. g3 {[%clk 0:02:14]}  Kb8 {[%clk 0:02:07]} 26. Bc6 {[%clk 0:02:12]}  Qd6 {[%clk 0:01:55]} 27. Bxb7 {[%clk 0:02:07]}  Kxb7 {[%clk 0:01:54]} 28. a4 {[%clk 0:01:53]}  Qxg3 {[%clk 0:01:51]} 29. a5 {[%clk 0:01:52]}  Qxh4 {[%clk 0:01:34]} 30. a6+ {[%clk 0:01:46]}  Nxa6 {[%clk 0:01:31]} 31. Nb5 {[%clk 0:01:45]}  Qe7 {[%clk 0:01:25]} 32. e5 {[%clk 0:01:43]}  Qg5+ {[%clk 0:01:13]} 33. Kb1 {[%clk 0:01:38]}  Qxe5 {[%clk 0:01:12]} 34. Nd4 {[%clk 0:01:32]}  Qe1+ {[%clk 0:01:10]} 35. Ka2 {[%clk 0:01:30]}  Nxb4+ {[%clk 0:01:09]} 36. Ka3 {[%clk 0:01:28]}  a5 {[%clk 0:01:06]} 37. Nb5 {[%clk 0:01:23]}  Qa1+ {[%clk 0:01:03]} 0-1


[Site "https://www.chess.com"]

[Event "Titled Tuesday Blitz November 22 Late 2022"]
[White "Ibadov, Dashgyn"]
[Black "Shimanov, Aleksandr"]
[WhiteFideId "24107514"]
[BlackFideId "4198603"]
[WhiteElo "2208"]
[BlackElo "2605"]
[Result "0-1"]
[Round "01"]
[TimeControl "180+1"]
[Date "2022.11.23"]
[WhiteClock "0:00:11"]
[BlackClock "0:00:17"]

1. e4 {[%clk 0:03:00]}  e6 {[%clk 0:02:50]} 2. d4 {[%clk 0:02:59]}  d5 {[%clk 0:02:50]} 3. Nc3 {[%clk 0:03:00]}  Nf6 {[%clk 0:02:49]} 4. e5 {[%clk 0:02:59]}  Nfd7 {[%clk 0:02:49]} 5. Nce2 {[%clk 0:02:59]}  c5 {[%clk 0:02:47]} 6. c3 {[%clk 0:03:00]}  cxd4 {[%clk 0:02:43]} 7. cxd4 {[%clk 0:02:59]}  f6 {[%clk 0:02:43]} 8. exf6 {[%clk 0:02:50]}  Nxf6 {[%clk 0:02:41]} 9. Nf3 {[%clk 0:02:51]}  Bd6 {[%clk 0:02:40]} 10. g3 {[%clk 0:02:47]}  O-O {[%clk 0:02:39]} 11. Bg2 {[%clk 0:02:47]}  Nc6 {[%clk 0:02:38]} 12. O-O {[%clk 0:02:47]}  Bd7 {[%clk 0:02:20]} 13. Bf4 {[%clk 0:02:46]}  Be8 {[%clk 0:02:20]} 14. Bxd6 {[%clk 0:02:45]}  Qxd6 {[%clk 0:02:21]} 15. Nf4 {[%clk 0:02:41]}  Ne4 {[%clk 0:02:21]} 16. Nd3 {[%clk 0:02:36]}  Bh5 {[%clk 0:02:20]} 17. Nf4 {[%clk 0:02:24]}  Rxf4 {[%clk 0:02:19]} 18. gxf4 {[%clk 0:02:24]}  Qxf4 {[%clk 0:02:19]} 19. Qd3 {[%clk 0:02:15]}  Rf8 {[%clk 0:02:16]} 20. Ne5 {[%clk 0:02:15]}  Nxe5 {[%clk 0:01:46]} 21. dxe5 {[%clk 0:02:16]}  Qxe5 {[%clk 0:01:46]} 22. Rae1 {[%clk 0:02:07]}  Qxb2 {[%clk 0:01:37]} 23. Bxe4 {[%clk 0:01:52]}  dxe4 {[%clk 0:01:38]} 24. Qxe4 {[%clk 0:01:53]}  Rf6 {[%clk 0:01:36]} 25. Re3 {[%clk 0:01:37]}  Be8 {[%clk 0:01:28]} 26. Rg3 {[%clk 0:01:31]}  Bc6 {[%clk 0:01:24]} 27. Qg4 {[%clk 0:01:29]}  Rg6 {[%clk 0:01:22]} 28. Qf4 {[%clk 0:01:26]}  Rf6 {[%clk 0:00:54]} 29. Qc7 {[%clk 0:01:19]}  Rf8 {[%clk 0:00:46]} 30. Qd6 {[%clk 0:00:49]}  Bd5 {[%clk 0:00:38]} 31. a3 {[%clk 0:00:42]}  h6 {[%clk 0:00:37]} 32. h3 {[%clk 0:00:40]}  Qd4 {[%clk 0:00:29]} 33. Rg4 {[%clk 0:00:35]}  Qf6 {[%clk 0:00:26]} 34. Kh2 {[%clk 0:00:30]}  b6 {[%clk 0:00:20]} 35. Qg3 {[%clk 0:00:20]}  Kh7 {[%clk 0:00:19]} 36. h4 {[%clk 0:00:14]}  Rf7 {[%clk 0:00:18]} 37. Qc3 {[%clk 0:00:11]}  Qxc3 {[%clk 0:00:17]} 0-1


[Site "https://www.chess.com"]

[Event "Titled Tuesday Blitz November 22 Late 2022"]
[White "Jaracz, Pawel"]
[Black "Fernandez Siles, Luis"]
[WhiteFideId "1102222"]
[BlackFideId "2209420"]
[WhiteElo "2459"]
[BlackElo "2186"]
[Result "1-0"]
[Round "01"]
[TimeControl "180+1"]
[Date "2022.11.23"]
[WhiteClock "0:00:13"]
[BlackClock "0:00:01"]

1. d4 {[%clk 0:02:57]}  Nf6 {[%clk 0:02:57]} 2. c4 {[%clk 0:02:57]}  g6 {[%clk 0:02:58]} 3. Nc3 {[%clk 0:02:54]}  Bg7 {[%clk 0:02:58]} 4. e4 {[%clk 0:02:54]}  d6 {[%clk 0:02:59]} 5. Nf3 {[%clk 0:02:53]}  O-O {[%clk 0:02:59]} 6. Be2 {[%clk 0:02:53]}  c5 {[%clk 0:02:59]} 7. O-O {[%clk 0:02:52]}  Nc6 {[%clk 0:02:59]} 8. d5 {[%clk 0:02:50]}  Na5 {[%clk 0:02:59]} 9. h3 {[%clk 0:02:49]}  e5 {[%clk 0:02:57]} 10. a3 {[%clk 0:02:36]}  b6 {[%clk 0:02:57]} 11. b4 {[%clk 0:02:34]}  Nb7 {[%clk 0:02:57]} 12. Ne1 {[%clk 0:02:30]}  Nd7 {[%clk 0:02:49]} 13. Nd3 {[%clk 0:02:28]}  f5 {[%clk 0:02:46]} 14. Bd2 {[%clk 0:02:25]}  Nf6 {[%clk 0:02:36]} 15. bxc5 {[%clk 0:02:18]}  Nxc5 {[%clk 0:02:21]} 16. Nxc5 {[%clk 0:02:17]}  bxc5 {[%clk 0:02:20]} 17. Bf3 {[%clk 0:02:16]}  f4 {[%clk 0:02:17]} 18. Rb1 {[%clk 0:02:14]}  g5 {[%clk 0:02:05]} 19. Kh2 {[%clk 0:01:40]}  a6 {[%clk 0:01:33]} 20. g4 {[%clk 0:01:30]}  h5 {[%clk 0:01:23]} 21. Rg1 {[%clk 0:01:17]}  hxg4 {[%clk 0:01:09]} 22. Bxg4 {[%clk 0:01:16]}  Nxg4+ {[%clk 0:01:00]} 23. hxg4 {[%clk 0:01:16]}  f3 {[%clk 0:01:01]} 24. Rg3 {[%clk 0:01:13]}  Qf6 {[%clk 0:00:30]} 25. Be3 {[%clk 0:00:56]}  Ra7 {[%clk 0:00:30]} 26. Qd2 {[%clk 0:00:55]}  Bh6 {[%clk 0:00:30]} 27. Rb6 {[%clk 0:00:54]}  Rh7 {[%clk 0:00:29]} 28. Kg1 {[%clk 0:00:55]}  Kg7 {[%clk 0:00:25]} 29. Bxc5 {[%clk 0:00:49]}  Rd8 {[%clk 0:00:22]} 30. Bb4 {[%clk 0:00:44]}  Kg8 {[%clk 0:00:22]} 31. c5 {[%clk 0:00:39]}  Bf8 {[%clk 0:00:22]} 32. cxd6 {[%clk 0:00:37]}  Qh6 {[%clk 0:00:22]} 33. Kf1 {[%clk 0:00:34]}  Qh1+ {[%clk 0:00:20]} 34. Rg1 {[%clk 0:00:34]}  Bxg4 {[%clk 0:00:17]} 35. Qxg5+ {[%clk 0:00:32]}  Kh8 {[%clk 0:00:11]} 36. Qxg4 {[%clk 0:00:28]}  Qh6 {[%clk 0:00:06]} 37. Qg5 {[%clk 0:00:24]}  Qh3+ {[%clk 0:00:02]} 38. Ke1 {[%clk 0:00:23]}  Rg7 {[%clk 0:00:03]} 39. Qxd8 {[%clk 0:00:18]}  Rxg1+ {[%clk 0:00:04]} 40. Kd2 {[%clk 0:00:18]}  Rg8 {[%clk 0:00:02]} 41. Qf6+ {[%clk 0:00:16]}  Bg7 {[%clk 0:00:01]} 42. Qf5 {[%clk 0:00:17]}  Qh6+ {[%clk 0:00:01]} 43. Kd3 {[%clk 0:00:16]}  Qc1 {[%clk 0:00:01]} 44. Qxf3 {[%clk 0:00:13]} 1-0


[Site "https://www.chess.com"]

[Event "Titled Tuesday Blitz November 22 Late 2022"]
[White "Jarmula, Lukasz"]
[Black "Rose, Felix"]
[WhiteFideId "1160664"]
[BlackFideId "5105722"]
[WhiteElo "2357"]
[BlackElo "2039"]
[Result "1-0"]
[Round "01"]
[TimeControl "180+1"]
[Date "2022.11.23"]
[WhiteClock "0:01:29"]
[BlackClock "0:00:23"]

1. e4 {[%clk 0:02:57]}  e5 {[%clk 0:02:57]} 2. Nf3 {[%clk 0:02:57]}  Nc6 {[%clk 0:02:58]} 3. Bb5 {[%clk 0:02:58]}  a6 {[%clk 0:02:58]} 4. Ba4 {[%clk 0:02:57]}  Nf6 {[%clk 0:02:57]} 5. O-O {[%clk 0:02:57]}  Be7 {[%clk 0:02:55]} 6. Re1 {[%clk 0:02:57]}  b5 {[%clk 0:02:55]} 7. Bb3 {[%clk 0:02:57]}  d6 {[%clk 0:02:55]} 8. c3 {[%clk 0:02:56]}  O-O {[%clk 0:02:54]} 9. h3 {[%clk 0:02:54]}  Nb8 {[%clk 0:02:54]} 10. d4 {[%clk 0:02:53]}  Nbd7 {[%clk 0:02:54]} 11. Nbd2 {[%clk 0:02:54]}  Bb7 {[%clk 0:02:54]} 12. Bc2 {[%clk 0:02:54]}  Re8 {[%clk 0:02:54]} 13. Nf1 {[%clk 0:02:55]}  Bf8 {[%clk 0:02:54]} 14. Ng3 {[%clk 0:02:55]}  g6 {[%clk 0:02:54]} 15. a4 {[%clk 0:02:54]}  c5 {[%clk 0:02:53]} 16. d5 {[%clk 0:02:53]}  c4 {[%clk 0:02:53]} 17. Bg5 {[%clk 0:02:53]}  h6 {[%clk 0:02:42]} 18. Be3 {[%clk 0:02:53]}  Qc7 {[%clk 0:02:32]} 19. Qd2 {[%clk 0:02:52]}  Kh7 {[%clk 0:02:28]} 20. Nh4 {[%clk 0:02:51]}  Nc5 {[%clk 0:02:24]} 21. f3 {[%clk 0:02:44]}  bxa4 {[%clk 0:01:52]} 22. Bxa4 {[%clk 0:02:39]}  Nxa4 {[%clk 0:01:52]} 23. Rxa4 {[%clk 0:02:39]}  a5 {[%clk 0:01:49]} 24. Rea1 {[%clk 0:02:33]}  Nd7 {[%clk 0:01:44]} 25. Nhf5 {[%clk 0:02:29]}  gxf5 {[%clk 0:01:37]} 26. Nxf5 {[%clk 0:02:29]}  Nc5 {[%clk 0:01:35]} 27. Bxh6 {[%clk 0:02:26]}  f6 {[%clk 0:00:55]} 28. Bxf8 {[%clk 0:01:46]}  Rxf8 {[%clk 0:00:55]} 29. Rxc4 {[%clk 0:01:43]}  Kg8 {[%clk 0:00:32]} 30. Kh2 {[%clk 0:01:34]}  Nb3 {[%clk 0:00:23]} 31. Rxc7 {[%clk 0:01:32]}  Nxd2 {[%clk 0:00:23]} 32. Rxb7 {[%clk 0:01:30]}  Rf7 {[%clk 0:00:23]} 33. Nh6+ {[%clk 0:01:29]} 1-0


[Site "https://www.chess.com"]